{"text_format":"2","workbook":"xlsx","n_sheets":1,"sheets":["Página1"],"not_rendered":{"charts":0,"images":0,"macros":0,"external_links":0,"defined_names":2,"comments":0,"pivot_tables":0},"unopened":[],"bounds":{"document_bytes":16777216,"sheet_cells":100000,"run_cost":"one","rows_first":2000,"rows_last":500,"rows_between":2000,"halvings":0,"cell_chars":16384,"cell_head_chars":4096},"cells_cut":0,"cells_raw":0,"read":"whole","date_system":"1900"}

{"sheet":"Página1","index":0,"n_rows":131,"n_cols":10,"rows_kept":131,"cut":false,"hidden":false,"merged":[[92,0,92,1]]}
["Quant","Que","Quem","já tenho","faltam","Fazer ou comprar","Valor médio","Link de lugares que gostei","Valor","Valor DIY"]
[null,"Roupas para o bebe"]
[20.0,"babadores",null,null,{"$f":"A3-D3","v":20}]
[10.0,"Body de manga comprida p",null,null,10]
[10.0,"Body de manga comprida RN ",null,null,10]
[10.0,"Body manga curta RN",null,null,10]
[10.0,"Body de manga comprida M",null,null,10]
[10.0,"Body de manga curta: tamanho P",null,null,10]
[10.0,"Body manga curta M",null,null,10]
[7.0,"Calça de moletom, plush ou jeans: tamanho P",null,null,7]
[10.0,"Calça tipo \"mijão\" ou culote com ou sem pé p",null,null,10]
[10.0,"Calça tipo \"mijão\" ou culote com ou sem pé RN",null,null,10]
[5.0,"Camiseta: tamanho P",null,null,5]
[5.0,"camisetas M (3 a 6 meses)",null,null,5]
[5.0,"Casaquinho de lã,plush, linha ou moletom grosso: P",null,null,5]
[5.0,"Casaquinho de lã, linha ou moletom grosso: M (3 a 6 meses)",null,null,5]
[2.0,"Casaquinho de lã, linha ou moletom grosso: RN",null,null,2]
[4.0,"casaquinho de algodão",null,null,4]
[2.0,"Chapéu para sol",null,null,2]
[2.0,"Sunga de praia",null,null,2]
[2.0,"conjuntos de lã (macacão, casaco, toca, sapatinhos...)",null,null,2]
[1.0,"toca de lã",null,null,1]
[2.0,"toca de algodão",null,null,2]
[1.0,"toca com protetor de orelha P ",null,null,1]
[5.0,"luvinhas de algodão",null,null,5]
[7.0,"Macacão de algodão simples, confortável, tipo pijama P",null,null,7]
[7.0,"Macacão de algodão simples, confortável, tipo pijama: tamanho RN",null,null,7]
[10.0,"Macacão inteiro de manga comprida: tamanho P ",null,null,10]
[7.0,"Macacão inteiro de manga comprida soft: tamanho RN",null,null,7]
[10.0,"Macacão inteiro de manga comprida soft: tamanho M",null,null,10]
[2.0,"Macaquinho ou jardineira curta para banho de sol: P",null,null,2]
[2.0,"macaquinho ou jardineira curta para banho de sol: M",null,null,2]
[10.0,"Meia p",null,null,10]
[5.0,"sapatinho de tecido ou pantufa ou lã ",null,null,5]
[{"$nulls":4},0]
[null,"Cama e Banho",null,null,0]
[{"$nulls":4},0]
[5.0,"Cueiro ou manta de algodão",null,null,5]
[10.0,"Fralda de pano para usos variados (cremer simples)",null,null,10]
[4.0,"jogos de lençóis e fronhas",null,null,4]
[1.0,"Kit berço completo (protetores de berço, mosqueteiro, 1 trocador, 1 ededrom, 1 lençol com elástico, 1 travesseiro)",null,null,1]
[1.0,"lixeira com pedal",null,null,1]
[2.0,"manta microfibra ou mais grossa tipo edredon",null,null,2]
[10.0,"Paninho de boca (pra começar)",null,null,10]
[2.0,"protetor de colchão impermeável",null,null,2]
[4.0,"Toalha/fralda de banho com capuz",null,null,4]
[1.0,"travesseiro",null,null,1]
[1.0,"Travesseiro anti refluxo",null,null,1]
[1.0,"trocador",null,null,1]
[1.0,"Xale de lã: 1",null,null,1]
[1.0,"saída de maternidade",null,null,1]
[2.0,"saco de dormir",null,null,2]
[1.0,"rolinho segura bebê",null,null,1]
[{"$nulls":4},0]
[null,"Higiene saude e outros",null,null,0]
[{"$nulls":4},0]
[1.0,"Álcool 70%",null,null,1]
[1.0,"Aspirador nasal",null,null,1]
[1.0,"Banheira",null,null,1]
[12.0,"cabides",null,null,12]
[1.0,"Cesta",null,null,1]
[2.0,"Chupetas ortodontica 0 a 6 meses",null,null,2]
[1.0,"Conjunto de escova e pente",null,null,1]
[1.0,"Conta-gotas",null,null,1]
[4.0,"Creme para assaduras",null,null,4]
[1.0,"Escova de mamadeira",null,null,1]
[1.0,"Farmacinha",null,null,1]
[1.0,"Garrafa térmica 250 ml branca",null,null,1]
[2.0,"Gase",null,null,2]
[1.0,"Jogo de potes",null,null,1]
[1.0,"Jogo de pratos e talheres anatômicos",null,null,1]
[4.0,"Lenços umidecidos",null,null,4]
[1.0,"Massageador de gengivas",null,null,1]
[2.0,"Copo de treinamento",null,null,2]
[1.0,"Mordedor",null,null,1]
[2.0,"Pacote de algodão bolinha",null,null,2]
[15.0,"Pacotes de fralda P",null,null,15]
[4.0,"Pacotes de fralda RN",null,null,4]
[38.0,"Pacote de fraldas descartáveis M",null,null,38]
[42.0,"Pacote de fraldas descartáveis G",null,null,42]
[1.0,"porta roupas sujas ou cesto",null,null,1]
[1.0,"Porta-chupetas",null,null,1]
[3.0,"Prendedor de chupeta",null,null,3]
[1.0,"sabonete neutro jonson da cabeça aos pes",null,null,1]
[1.0,"Saboneteira",null,null,1]
[1.0,"Termômetro clínico",null,null,1]
[1.0,"Termômetro de banheira",null,null,1]
[1.0,"Tesourinha romba e cortador de unhas",null,null,1]
[1.0,"esterelizador de mamadeiras (opcional)",null,null,1]
[1.0,"Mamadeira ",null,null,1]
[20.0,"fraldas de pano modernas (caso vá usar)",null,null,20]
[1.0,"saquinho de sementes para colica",null,null,1]
["Complementos",null,null,null,"#VALUE!"]
[null,"Ítem",null,null,0]
[1.0,"Móbile para berço",null,null,1]
[1.0,"naninha",null,null,1]
[1.0,"Bebe conforto",null,null,1]
[20.0,"lembrancinha de maternidade",null,null,20]
[1.0,"desumidificador",null,null,1]
[2.0,"sling ou canguru",null,null,2]
[1.0,"colchonete para carrinho",null,null,1]
[2.0,"lençol para carrinho",null,null,2]
[1.0,"carrinho de passeio ",null,null,1]
[{"$nulls":4},0]
["Móveis",null,null,null,"#VALUE!"]
[null,"Ítem",null,null,0]
[1.0,"Berço",null,null,1]
[1.0,"armário",null,null,1]
[1.0,"colchão",null,null,1]
[1.0,"baba eletronica",null,null,1]
[1.0,"mesa de cabeceira (de preferencia redonda ou arredondada para ser mais seguro)",null,null,1]
[1.0,"aquecedor a oleo (para lugares frios)",null,null,1]
[1.0,"abajour",null,null,1]
["Para a mamãe",null,null,null,"#VALUE!"]
[null,"Ítem",null,null,0]
[10.0,"Calcinhas de tamanho maior",null,null,10]
[1.0,"Cinta pós-parto",null,null,1]
[2.0,"Concha para seios (pares)",null,null,2]
[2.0," camisola de algodão com abertura na frente que facilite amamentação",null,null,2]
[2.0,"pijama de manga  que facilite amamentação",null,null,2]
[3.0,"Pacotes de absorvente próprio para o pós-parto (noturno de boa qualidade pode servir)",null,null,3]
[7.0,"Sutiãs de amamentação",null,null,7]
[5.0,"pacotes de Absorventes para seios",null,null,5]
[5.0,"aborventes para seios de algodão reutilizáveis (se não quiser comprar os descartáveis)",null,null,5]
[1.0,"Almofada de amamentação",null,null,1]
[1.0,"Tira leite",null,null,1]
[{"$nulls":4},0]
[null,"Passeios:",null,null,0]
[1.0,"Mochila ou bolsa de bebe",null,null,1]
[null,"bolsa térmica",null,null,0]
[{"$nulls":4},0]